bitfinex-derivatives/quotes_SOLF0:USTF0_20250716
["timestamp","ask_amount","ask_price","bid_price","bid_amount"]
[1752688438817,3.4,173.9,173.88,3.28]
[1752688439111,3.4,173.93,173.84,114.48651952]
[1752688439300,5.7478,173.91,173.86,3.28]
[1752688439505,3.4,173.9,173.88,3.28]
[1752688439701,3.4,173.93,173.89,3.28]
[1752688440005,3.4,173.92,173.91,3.28]
[1752688440209,3.4,173.91,173.89,3.28]
[1752688440507,3.4,173.91,173.87,6.15032013]
[1752688440700,3.4,173.93,173.9,3.28]
[1752688440900,39.8165,173.95,173.9,3.28]
[1752688441107,34.07,173.95,173.92,3.28]
[1752688441311,39.8163,173.95,173.93,3.28]
[1752688441512,39.8163,173.95,173.85,3.28]
[1752688441513,3.4,173.94,173.85,3.28]
[1752688441913,3.4,173.91,173.85,3.28]
[1752688442110,3.4,173.91,173.8,0.18013795]
[1752688442111,3.4,173.9,173.82,3.28]
[1752688442509,243.98,173.89,173.83,3.28]
[1752688442711,3.4,173.88,173.81,3.28]
[1752688443109,3.4,173.87,173.82,6.15032013]
[1752688443311,3.4,173.87,173.84,3.28]
[1752688443508,3.4,173.89,173.85,3.28]
[1752688443819,3.4,173.89,173.87,3.28]
[1752688444116,3.4,173.88,173.86,3.28]
[1752688444316,3.4,173.91,173.85,3.28]
[1752688444706,3.4,173.87,173.85,3.28]
[1752688444912,2.31807371,173.86,173.85,3.28]
[1752688445210,30.67,173.95,173.85,3.28]
[1752688445211,3.4,173.91,173.85,9.43032013]
[1752688445412,246.82,173.94,173.86,3.28]
[1752688445718,3.4,173.94,173.92,3.28]
[1752688446020,3.4,173.93,173.91,3.28]
[1752688446313,3.4,173.93,173.92,3.28]
[1752688446512,3.4,173.94,173.92,3.28]
[1752688446815,30.67,173.95,173.94,3.28]
[1752688447821,30.67,173.95,173.8,0.18013795]
[1752688447822,39.8162,173.95,173.92,3.28]
[1752688448022,3.4,173.94,173.92,3.28]
[1752688448412,36.4165,173.95,173.93,3.28]
[1752688448618,36.4165,173.95,173.94,3.28]
[1752688448917,9.1472,173.93,173.91,3.28]
[1752688449321,3.4,173.92,173.9,3.28]
[1752688449519,5.7469,173.93,173.91,3.28]
[1752688449719,3.4,173.94,173.87,3.28]
[1752688449920,5.7478,173.91,173.87,3.28]
[1752688450117,3.4,173.94,173.87,3.28]
[1752688450320,3.4,173.94,173.89,3.28]
[1752688450520,5.7474,173.92,173.91,3.28]
[1752688450721,3.4,173.92,173.87,6.15032013]
[1752688450925,3.4,173.94,173.86,3.28]
[1752688451121,3.4,173.92,173.81,3.28]
[1752688451420,3.4,173.88,173.81,3.28]
[1752688451622,3.4,173.84,173.8,0.18013795]
[1752688451821,3.4,173.82,173.75,3.28]
[1752688452016,5.7525,173.76,173.75,3.28]
[1752688452430,5.7525,173.76,173.73,3.28]
[1752688452723,5.7528,173.75,173.74,3.28]
[1752688452926,3.4,173.76,173.74,3.28]
[1752688453119,243.92,173.82,173.74,3.28]
[1752688453321,5.7519,173.78,173.73,6.15032013]
[1752688453517,9.55032013,173.81,173.75,3.28]
[1752688453721,3.4,173.8,173.75,3.28]
[1752688453919,3.4,173.78,173.75,3.28]
[1752688454118,3.4,173.81,173.73,3.28]
[1752688454317,3.4,173.8,173.73,3.28]
[1752688454828,3.4,173.81,173.73,3.28]
[1752688455125,6.15032013,173.79,173.7,3.28]
[1752688455320,6.15032013,173.79,173.52,73.5203]
[1752688455321,3.4,173.74,173.67,3.28]
[1752688456120,3.4,173.76,173.71,3.28]
[1752688456320,3.4,173.8,173.74,6.15032013]
[1752688456527,3.4,173.83,173.75,3.28]
[1752688456729,3.26,173.82,173.76,6.15032013]
[1752688456929,5.7514,173.8,173.75,3.28]
[1752688457130,3.26,173.79,173.77,3.18]
[1752688457319,239.08,173.83,173.62,3.18]
[1752688457320,2.56433537,173.78,173.62,3.18]
[1752688457521,3.26,173.76,173.72,6.15032013]
[1752688457825,2.56433537,173.75,173.74,3.18]
[1752688458223,2.56433537,173.75,173.62,3.18]
[1752688458420,5.82433537,173.74,173.68,6.15032013]
[1752688458623,3.26,173.72,173.69,3.18]
[1752688458819,2.56433537,173.71,173.69,3.18]
[1752688459020,2.56433537,173.7,173.68,6.15032013]
[1752688459226,2.56433537,173.69,173.61,3.18]
[1752688459428,2.56433537,173.68,173.67,6.15032013]
[1752688460029,2.56433537,173.68,173.67,9.33032013]
[1752688460332,3.26,173.76,173.67,6.15032013]
[1752688460525,3.26,173.76,173.73,6.15032013]
[1752688460730,3.26,173.75,173.73,6.15032013]
[1752688461238,5.7534,173.74,173.71,6.15032013]
[1752688461529,3.26,173.74,173.71,6.15032013]
[1752688461717,496.76,173.8,173.73,6.15032013]
[1752688461718,3.26,173.77,173.73,6.15032013]
[1752688461921,3.26,173.76,173.74,6.15032013]
[1752688462126,3.26,173.76,173.6,6.15032013]
[1752688462325,9.0129,173.75,173.72,6.15032013]
[1752688462522,3.26,173.81,173.72,6.15032013]
[1752688463534,3.26,173.79,173.72,6.15032013]
[1752688463733,3.26,173.79,173.69,3.18]
[1752688464027,3.26,173.79,173.69,9.33032013]
[1752688464423,3.26,173.77,173.67,6.15032013]
[1752688464629,3.26,173.75,173.67,6.15032013]
[1752688465029,3.26,173.68,173.66,3.18]
[1752688465229,0.38269677,173.68,173.66,3.18]
[1752688465728,6.15032013,173.76,173.66,3.18]
[1752688465927,243.47032013,173.79,173.69,6.15032013]
[1752688466128,5.7537,173.73,173.7,3.18]
[1752688466336,6.15032013,173.77,173.7,3.18]
[1752688466535,5.7542,173.71,173.68,3.18]
[1752688466736,6.15032013,173.77,173.68,3.18]
[1752688467239,6.15032013,173.77,173.69,3.18]
[1752688467428,3.26,173.76,173.69,3.18]
[1752688467733,3.26,173.71,173.69,3.18]
[1752688468236,6.15032013,173.78,173.67,6.15032013]
[1752688468539,3.26,173.72,173.68,3.18]
[1752688468739,3.26,173.75,173.71,6.15032013]
[1752688468939,496.88,173.83,173.74,6.15032013]
[1752688469141,496.88,173.83,173.74,7.17270895]
[1752688469142,9.0124,173.77,173.74,7.17270895]
[1752688469346,3.26,173.76,173.74,7.17270895]
[1752688469546,3.26,173.76,173.74,3.18]
[1752688470349,3.26,173.79,173.76,3.18]
[1752688470742,3.26,173.83,173.76,9.33032013]
[1752688471049,9.0121,173.77,173.74,9.33032013]
[1752688471445,3.26,173.82,173.71,6.15032013]
[1752688471838,5.753,173.75,173.71,6.15032013]
[1752688472037,3.26,173.75,173.72,3.18]
[1752688472343,2.34889322,173.74,173.72,3.18]
[1752688472541,2.34889322,173.73,173.72,3.18]
[1752688472741,3.26,173.71,173.67,9.33032013]
[1752688472953,5.60889322,173.7,173.67,6.15032013]
[1752688473142,2.34892424,173.69,173.67,6.15032013]
[1752688473446,2.34892424,173.68,173.53,735.76]
[1752688473753,3.26,173.75,173.68,3.18]
[1752688473944,6.15032013,173.79,173.71,3.18]
[1752688473945,3.26,173.74,173.71,3.18]
[1752688474145,235.1,173.78,173.69,3.18]
[1752688474146,6.15032013,173.77,173.69,3.18]
[1752688474347,3.26,173.71,173.67,6.15032013]
[1752688474547,3.26,173.76,173.66,6.15032013]
[1752688474746,5.7548,173.69,173.67,3.18]
[1752688474952,3.26,173.76,173.67,3.18]
[1752688475150,3.26,173.76,173.67,9.33032013]
[1752688475849,5.754,173.72,173.67,9.33032013]
[1752688476051,3.26,173.77,173.69,6.15032013]
[1752688476255,9.41032013,173.77,173.67,9.33032013]
[1752688476446,3.26,173.76,173.69,3.18]
[1752688477349,3.26,173.76,173.67,5.7553]
[1752688477350,3.26,173.76,173.71,3.18]
[1752688477654,239.99032013,173.79,173.71,3.18]
[1752688477854,3.26,173.8,173.73,6.15032013]
[1752688478055,3.26,173.78,173.73,9.33032013]
[1752688478352,9.0127,173.76,173.73,9.33032013]
[1752688478550,9.0127,173.76,173.74,3.18]
[1752688478950,5.7528,173.75,173.74,3.18]
[1752688479155,5.7528,173.75,173.73,6.15032013]
[1752688479360,9.0128,173.75,173.73,9.33032013]
[1752688479554,5.7528,173.75,173.73,9.33032013]
[1752688479854,5.7528,173.75,173.58,250.5166]
[1752688479855,3.26,173.75,173.59,3.18]
[1752688480057,3.26,173.75,173.71,3.18]
[1752688480352,30.85,173.74,173.73,3.18]
[1752688480558,30.85,173.74,173.71,3.18]
[1752688480559,3.26,173.73,173.71,3.18]
[1752688480747,3.26,173.73,173.68,9.33032013]
[1752688481056,3.26,173.72,173.69,3.18]
[1752688481256,34.11,173.74,173.71,3.18]
[1752688481562,3.26,173.73,173.71,3.18]
[1752688481856,3.26,173.73,173.7,6.15032013]
[1752688482056,5.7544,173.71,173.69,3.18]
[1752688482460,3.26,173.72,173.71,3.18]
[1752688482649,34.11,173.74,173.71,3.18]
[1752688483149,9.0137,173.73,173.71,3.18]
[1752688483354,3.26,173.73,173.71,3.18]
[1752688483858,30.85,173.74,173.73,3.18]
[1752688484060,30.85,173.74,173.73,9.33032013]
[1752688484660,30.85,173.74,173.73,3.18]
[1752688486155,33.18186385,173.74,173.73,3.18]
[1752688487959,42.05496385,173.74,173.72,3.22]
[1752688488164,2.33186385,173.73,173.71,6.15032013]
[1752688488360,2.33186385,173.72,173.71,6.15032013]
[1752688488558,2.33186385,173.72,173.71,11.90442013]
[1752688488860,2.33186385,173.72,173.71,9.37032013]
[1752688489063,3.12,173.8,173.72,3.22]
[1752688489367,233.5,173.82,173.8,3.22]
[1752688489562,3.12,173.81,173.78,3.22]
[1752688489759,497.08,173.85,173.7,6.15032013]
[1752688489968,497.08,173.85,173.76,6.15032013]
[1752688490163,3.12,173.79,173.7,6.15032013]
[1752688490360,3.12,173.78,173.76,3.22]
[1752688490563,5.7521,173.77,173.76,3.22]
[1752688490870,3.12,173.84,173.76,3.22]
[1752688491158,3.12,173.82,173.8,3.22]
[1752688491359,3.12,173.81,173.78,3.22]
[1752688491564,3.12,173.8,173.78,3.22]
[1752688491960,3.12,173.8,173.79,3.22]
[1752688492159,230.06,173.85,173.79,6.15032013]
[1752688492466,3.12,173.81,173.79,3.22]
[1752688492665,8.8708,173.81,173.79,3.22]
[1752688492864,3.12,173.81,173.79,3.22]
[1752688493068,233.06,173.87,173.79,3.22]
[1752688493268,8.8705,173.82,173.8,3.22]
[1752688493469,3.12,173.8,173.78,9.37032013]
[1752688493770,3.12,173.8,173.79,3.22]
[1752688493967,3.12,173.91,173.8,3.22]
[1752688494162,12.72977556,173.95,173.79,6.15032013]
[1752688494466,3.12,173.92,173.87,3.22]
[1752688494667,3.12,173.92,173.84,3.22]
[1752688494863,3.12,173.92,173.85,6.15032013]
[1752688495065,12.72977556,173.94,173.85,6.15032013]
[1752688495256,3.12,173.88,173.86,3.22]
[1752688495762,3.12,173.87,173.83,9.37032013]
[1752688495964,3.12,173.91,173.83,6.15032013]
[1752688496265,18.88009569,173.9,173.82,3.22]
[1752688496456,3.12,173.89,173.82,3.22]
[1752688496863,3.12,173.87,173.79,6.15032013]
[1752688497168,3.12,173.87,173.8,3.22]
[1752688497362,3.12,173.83,173.8,3.22]
[1752688497771,3.12,173.83,173.81,3.22]
[1752688497971,12.72977556,173.92,173.83,3.22]
[1752688498167,12.72977556,173.95,173.83,3.22]
[1752688498363,5.7476,173.91,173.87,6.15032013]
[1752688498671,6.15032013,173.96,173.87,3.22]
[1752688498970,12.72977556,173.97,173.87,3.22]
[1752688499167,12.72977556,173.95,173.87,3.22]
[1752688499368,12.72977556,173.96,173.87,3.22]
[1752688499567,18.88009569,173.96,173.87,3.22]
[1752688499759,12.72977556,173.98,173.88,6.15032013]
[1752688499966,3.12,173.97,173.89,3.22]
[1752688500168,5.7462,173.96,173.91,3.22]
[1752688500468,3.12,173.97,173.89,3.22]
[1752688500671,5.7474,173.92,173.85,6.15032013]
[1752688500969,6.15032013,173.92,173.83,3.22]
[1752688501171,3.12,173.91,173.83,3.22]
[1752688501469,3.12,173.91,173.85,6.15032013]
[1752688501673,3.12,173.91,173.82,3.22]
[1752688501874,3.12,173.86,173.83,3.22]
[1752688502166,6.15032013,173.89,173.83,3.22]
[1752688502372,3.12,173.86,173.8,3.22]
[1752688502864,3.12,173.83,173.76,3.22]
[1752688504075,5.7505,173.82,173.76,3.22]
[1752688504262,3.12,173.83,173.76,3.22]
[1752688505068,8.8702,173.83,173.76,3.22]
[1752688505371,3.12,173.83,173.76,3.22]
[1752688505773,5.7505,173.82,173.76,3.22]
[1752688505973,3.12,173.83,173.76,3.22]
[1752688506974,3.12,173.81,173.77,3.22]
[1752688507171,3.12,173.81,173.74,3.22]
[1752688507579,3.12,173.79,173.74,3.22]
[1752688507775,3.12,173.78,173.74,3.22]
[1752688508071,3.12,173.77,173.74,3.22]
[1752688508273,8.8722,173.77,173.74,3.22]
[1752688508575,3.12,173.79,173.74,3.22]
[1752688508875,3.12,173.77,173.7,3.22]
[1752688509076,3.12,173.77,173.64,105.72753244]
[1752688509077,6.15032013,173.76,173.66,6.15032013]
[1752688509272,8.8733,173.74,173.71,3.22]
[1752688509576,3.12,173.74,173.71,3.22]
[1752688509777,5.7535,173.73,173.71,3.22]
[1752688509977,3.12,173.73,173.64,105.72753244]
[1752688510274,3.12,173.73,173.66,3.22]
[1752688511474,3.1571825,173.71,173.68,0.03769136]
[1752688511773,0.0371825,173.71,173.68,3.25769136]
[1752688511977,5.7551,173.69,173.65,3.22]
[1752688512175,3.12,173.7,173.67,3.22]
[1752688512573,3.12,173.7,173.68,3.22]
[1752688512776,5.7542,173.71,173.68,3.22]
[1752688513071,3.12,173.73,173.7,3.22]
[1752688513279,3.12,173.73,173.65,6.15032013]
[1752688513280,3.12,173.73,173.66,3.22]
[1752688513873,8.8751,173.68,173.66,3.22]
[1752688514068,3.12,173.72,173.66,3.22]
[1752688514374,5.7547,173.7,173.66,3.22]
[1752688514576,8.8747,173.7,173.67,3.22]
[1752688514775,3.12,173.69,173.61,3.22]
[1752688514978,3.12,173.68,173.54,3.22]
[1752688515274,3.12,173.68,173.63,3.22]
[1752688515471,3.12,173.7,173.65,3.22]
[1752688515775,3.12,173.73,173.65,3.22]
[1752688516176,3.12,173.73,173.67,3.22]
[1752688516677,3.12,173.71,173.65,6.15032013]
[1752688516875,3.12,173.71,173.66,3.21]
[1752688517079,3.12,173.71,173.68,3.21]
[1752688517974,5.7548,173.69,173.66,3.21]
[1752688518174,3.18,173.7,173.67,3.21]
[1752688518375,0.04340813,173.69,173.67,3.21]
[1752688518578,3.18,173.66,173.63,3.21]
[1752688518975,3.18,173.66,173.64,3.21]
[1752688519274,3.18,173.67,173.65,3.21]
[1752688519579,5.7558,173.66,173.65,3.21]
[1752688519977,3.18,173.65,173.64,0.0383896]
[1752688520169,8.9361,173.65,173.64,0.0383896]
[1752688520375,3.18,173.65,173.59,3.21]
[1752688520578,5.7575,173.61,173.59,3.21]
[1752688520782,3.18,173.65,173.59,3.21]
[1752688520977,3.18,173.64,173.56,3.21]
[1752688521374,3.18,173.64,173.58,3.21]
[1752688521681,242.08,173.69,173.59,3.21]
[1752688521682,0.04316329,173.62,173.59,3.21]
[1752688521885,5.48575892,173.61,173.57,3.21]
[1752688522175,5.7581,173.59,173.54,6.15032013]
[1752688522381,2.30575892,173.58,173.57,3.21]
[1752688522880,3.18,173.66,173.57,3.21]
[1752688523083,3.18,173.66,173.6,6.15032013]
[1752688523376,0.04056259,173.63,173.62,3.21]
[1752688523578,0.04056259,173.63,173.6,3.21]
[1752688523783,3.18,173.65,173.61,3.21]
[1752688523979,5.7568,173.63,173.58,6.15032013]
[1752688524181,0.03798159,173.63,173.58,6.15032013]
[1752688524483,5.79478159,173.63,173.61,3.21]
[1752688524686,0.03798159,173.63,173.61,3.21]
[1752688524986,3.21798159,173.63,173.61,3.21]
[1752688525285,3.21798159,173.63,173.54,3.21]
[1752688525486,3.18,173.62,173.56,3.21]
[1752688526176,3.18,173.59,173.54,3.21]
[1752688526387,3.18,173.58,173.52,3.21]
[1752688526578,3.18,173.58,173.52,9.36032013]
[1752688526885,0.04260815,173.57,173.55,3.21]
[1752688527089,0.04260815,173.57,173.56,3.21]
[1752688527285,8.9381,173.59,173.56,3.21]
[1752688527487,3.18,173.59,173.57,3.21]
[1752688527681,0.03632955,173.58,173.57,3.21]
[1752688528287,0.03632955,173.58,173.55,3.21]
[1752688528585,3.18,173.57,173.53,3.21]
[1752688528777,0.03632955,173.58,173.52,6.15032013]
[1752688528983,246.21032013,173.63,173.55,3.21]
[1752688529183,3.18,173.58,173.55,3.21]
[1752688529383,0.03683092,173.57,173.54,6.15032013]
[1752688529584,0.03683092,173.57,173.55,3.21]
[1752688529784,3.18,173.6,173.43,3.21]
[1752688529980,5.759,173.57,173.53,6.15032013]
[1752688530177,0.04132427,173.58,173.56,3.21]
[1752688530584,5.7587,173.57,173.56,3.21]
[1752688530780,0.04132427,173.58,173.56,3.21]
[1752688530981,5.7587,173.57,173.53,6.15032013]
[1752688531184,3.18,173.57,173.55,3.21]
[1752688531592,3.18,173.62,173.53,3.21]
[1752688531895,3.21803879,173.58,173.51,6.15032013]
[1752688532184,3.18,173.57,173.49,6.15032013]
[1752688532385,9.33032013,173.57,173.5,3.21]
[1752688532589,0.03849161,173.55,173.5,3.21]
[1752688532781,5.7603,173.53,173.51,3.21]
[1752688533290,0.03849161,173.55,173.47,6.15032013]
[1752688533488,0.03849161,173.55,173.5,3.21]
[1752688533990,3.18,173.57,173.5,3.21]
[1752688534194,0.03930117,173.54,173.52,3.21]
[1752688534396,0.03930117,173.54,173.53,9.36032013]
[1752688534692,5.7585,173.58,173.55,3.21]
[1752688534893,2.46384426,173.57,173.56,3.21]
[1752688535082,2.46384426,173.57,173.54,6.15032013]
[1752688535393,2.46384426,173.56,173.52,6.15032013]
[1752688535589,2.46384426,173.55,173.54,6.15032013]
[1752688535895,3.23,173.62,173.54,6.15032013]
[1752688536085,3.23,173.62,173.58,6.15032013]
[1752688536584,0.04015346,173.6,173.58,6.15032013]
[1752688537095,5.7564,173.64,173.59,5.7578]
[1752688537388,5.7564,173.64,173.5,6.15032013]
[1752688537389,3.23,173.66,173.63,3.21]
[1752688537594,5.7564,173.64,173.63,3.21]
[1752688538086,0.03748805,173.66,173.5,11.5216]
[1752688538293,3.23,173.64,173.62,3.21]
[1752688538592,5.7567,173.63,173.62,3.21]
[1752688538792,3.23,173.64,173.57,3.21]
[1752688539593,0.044136,173.62,173.58,3.21]
[1752688540086,3.274136,173.62,173.58,3.21]
[1752688540290,3.23,173.6,173.57,3.21]
[1752688540497,3.23,173.61,173.53,3.21]
[1752688541193,0.03948675,173.59,173.54,3.21]
[1752688541396,3.23,173.58,173.55,3.21]
[1752688541591,6.15032013,173.63,173.53,3.21]
[1752688541787,3.23,173.56,173.53,3.21]
[1752688542198,5.7597,173.54,173.53,3.21]
[1752688542591,3.23,173.56,173.54,3.21]
[1752688542798,8.9896,173.55,173.5,3.21]
[1752688543194,0.03876636,173.54,173.5,3.21]
[1752688543490,0.03876636,173.54,173.51,3.21]
[1752688543691,0.03876636,173.54,173.52,3.21]
[1752688543899,8.9901,173.53,173.49,3.21]
[1752688544092,5.7601,173.53,173.49,3.21]
[1752688544492,5.80208804,173.53,173.5,3.21]
[1752688544796,5.80208804,173.53,173.52,3.21]
[1752688545093,0.04198804,173.53,173.52,3.21]
[1752688545296,3.23,173.65,173.53,3.21]
[1752688545498,3.23,173.65,173.56,3.21]
[1752688545996,6.15032013,173.62,173.53,239.0]
[1752688546299,3.23,173.61,173.53,242.21]
[1752688546494,3.23,173.61,173.53,3.21]
[1752688547200,3.35,173.6,173.55,3.32]
[1752688547501,3.35,173.62,173.55,3.32]
[1752688547792,3.35,173.62,173.56,3.32]
[1752688547993,5.66812895,173.61,173.56,3.32]
[1752688548189,2.31812895,173.6,173.56,3.32]
[1752688548387,2.31812895,173.6,173.44,235.04]
[1752688548388,2.31812895,173.59,173.5,6.15032013]
[1752688548594,2.31812895,173.58,173.57,3.32]
[1752688550298,3.35,173.64,173.57,3.32]
[1752688550500,3.35,173.68,173.59,9.47032013]
[1752688550696,6.15032013,173.67,173.59,3.32]
[1752688550898,5.7573,173.62,173.59,3.32]
[1752688551093,3.35,173.61,173.59,3.32]
[1752688551294,742.1289,173.7,173.57,3.32]
[1752688551295,3.35,173.6,173.57,3.32]
[1752688551597,3.35,173.6,173.58,3.32]
[1752688552103,9.108,173.6,173.58,3.32]
[1752688552293,3.35,173.59,173.57,3.32]
[1752688552695,3.35,173.59,173.58,3.32]
[1752688552898,9.1075,173.61,173.56,3.32]
[1752688553195,5.7568,173.63,173.58,5.7581]
[1752688553395,3.35,173.63,173.6,3.32]
[1752688553592,3.35,173.63,173.61,3.32]
[1752688553993,3.35,173.63,173.62,3.32]
[1752688554191,5.743,173.67,173.62,3.32]
[1752688554391,3.35,173.64,173.62,3.32]
[1752688554599,3.35,173.65,173.63,3.32]
[1752688554801,3.35,173.63,173.61,3.32]
[1752688555000,9.107,173.63,173.61,3.32]
[1752688555202,3.35,173.62,173.58,6.15032013]
[1752688555406,3.35,173.62,173.6,3.32]
[1752688555704,9.1071,173.62,173.6,3.32]
[1752688556107,3.35,173.62,173.6,3.32]
[1752688557006,5.743,173.68,173.6,3.32]
[1752688557207,3.35,173.67,173.58,9.47032013]
[1752688557403,5.743,173.68,173.59,3.32]
[1752688557404,9.1073,173.62,173.59,3.32]
[1752688557599,3.35,173.61,173.59,3.32]
[1752688557799,3.35,173.6,173.58,6.15032013]
[1752688558002,3.35,173.6,173.58,9.47032013]
[1752688558504,9.1073,173.62,173.6,3.32]
[1752688558805,3.35,173.64,173.61,3.32]
[1752688559010,3.35,173.64,173.62,3.32]
[1752688559501,3.35,173.63,173.59,6.15032013]
[1752688559702,3.35,173.67,173.59,9.47032013]
[1752688559909,3.35,173.66,173.59,3.32]
[1752688560112,3.35,173.62,173.6,3.32]
[1752688560304,11.89332013,173.68,173.59,3.32]
[1752688560305,3.35,173.66,173.59,3.32]
[1752688560809,5.7568,173.63,173.58,6.15032013]
[1752688561009,3.35,173.62,173.58,6.15032013]
[1752688561206,3.35,173.62,173.6,3.32]
[1752688561504,3.35,173.62,173.58,6.15032013]
[1752688561700,3.35,173.64,173.62,3.32]
[1752688562009,3.35,173.63,173.62,3.32]
[1752688562406,3.35,173.63,173.6,3.32]
[1752688562605,3.35,173.63,173.61,3.32]
[1752688563307,6.15032013,173.69,173.59,6.15032013]
[1752688563308,3.35,173.68,173.63,3.32]
[1752688563511,3.35,173.68,173.66,3.32]
[1752688563809,3.35,173.69,173.63,3.32]
[1752688564307,5.7553,173.68,173.61,6.15032013]
[1752688564503,3.35,173.66,173.64,3.32]
[1752688565908,3.35,173.67,173.65,3.32]
[1752688566501,12.72977556,173.7,173.61,3.32]
[1752688566706,3.35,173.66,173.59,3.32]
[1752688566903,6.15032013,173.67,173.58,6.15032013]
[1752688567210,3.35,173.62,173.6,3.32]
[1752688567907,3.35,173.61,173.58,3.32]
[1752688568112,3.35,173.61,173.59,3.32]
[1752688569106,3.35,173.62,173.6,3.32]
[1752688570612,3.35,173.62,173.61,3.32]
[1752688571014,9.1064,173.64,173.58,6.15032013]
[1752688571211,3.35,173.63,173.59,3.32]
[1752688571409,3.35,173.63,173.61,3.32]
[1752688571609,9.107,173.63,173.61,3.32]
[1752688572313,3.35,173.62,173.61,3.32]
[1752688572518,9.1071,173.62,173.59,3.32]
[1752688572811,3.35,173.61,173.59,3.32]
[1752688573012,18.88009569,173.67,173.55,239.0]
[1752688573013,3.35,173.6,173.58,4.17832353]
[1752688573319,3.35,173.6,173.58,7.49832353]
[1752688573712,12.72977556,173.63,173.58,7.49832353]
[1752688574011,3.35,173.6,173.58,7.49832353]
[1752688574212,3.35,173.6,173.59,3.32]
[1752688575013,5.7573,173.62,173.59,3.32]
[1752688575315,9.1073,173.62,173.6,3.32]
[1752688575813,3.35,173.6,173.58,3.32]
[1752688576212,12.72977556,173.63,173.6,3.32]
[1752688576515,3.35,173.61,173.59,4.17832353]
[1752688576715,12.72977556,173.63,173.59,3.24]
[1752688576915,3.13,173.6,173.59,3.24]
[1752688577516,12.72977556,173.61,173.57,7.41832353]
[1752688577719,4.17832353,173.64,173.58,3.24]
[1752688577720,3.13,173.59,173.58,3.24]
[1752688578015,8.8876,173.61,173.55,239.0]
[1752688578209,3.13,173.6,173.59,3.24]
[1752688578407,5.7583,173.59,173.58,3.24]
[1752688578719,3.13,173.59,173.54,4.17832353]
[1752688578914,4.17832353,173.62,173.54,7.41832353]
[1752688579114,3.13,173.63,173.57,3.24]
[1752688579412,3.13,173.6,173.59,3.24]
[1752688580215,3.13,173.6,173.58,3.24]
[1752688580411,3.13,173.65,173.59,4.17832353]
[1752688580715,3.13,173.67,173.61,7.41832353]
[1752688581213,501.53832353,173.7,173.63,4.17832353]
[1752688581418,3.13,173.66,173.65,3.24]
[1752688582021,5.7555,173.67,173.65,7.41832353]
[1752688582222,8.8853,173.68,173.65,7.41832353]
[1752688582419,497.36,173.7,173.63,4.17832353]
[1752688582620,5.7561,173.65,173.63,7.41832353]
[1752688582817,3.13,173.64,173.63,7.41832353]